bitfinex-derivatives/quotes_ETHF0:USTF0_20251107
["timestamp","ask_amount","ask_price","bid_price","bid_amount"]
[1762526839731,3.2078,3261.0,3260.4,0.49718]
[1762526839926,3.211156,3261.0,3260.4,0.50092203]
[1762526840127,0.00795991,3261.0,3260.8,0.49712]
[1762526840632,0.00795991,3261.0,3260.9,6.1336]
[1762526840828,3.2078,3262.6,3260.9,8.0]
[1762526841129,3.2078,3261.7,3260.9,0.4971]
[1762526841433,1.0144,3263.4,3261.6,3.2078]
[1762526841434,3.2078,3262.3,3261.6,3.2078]
[1762526841825,3.21450837,3262.3,3261.6,3.21240391]
[1762526842129,3.21450837,3262.3,3261.9,0.49695]
[1762526842525,3.21450837,3262.3,3262.1,0.49692]
[1762526842829,0.00670837,3262.3,3262.1,0.49692]
[1762526843029,3.21450837,3262.3,3261.6,3.70940391]
[1762526843236,0.00670837,3262.3,3262.1,0.49692]
[1762526843427,3.2078,3263.1,3263.0,0.49679]
[1762526843733,3.2078,3263.5,3262.7,3.2078]
[1762526843931,3.70458,3263.1,3262.2,3.92856463]
[1762526844238,3.70465,3262.7,3262.1,3.2078]
[1762526844434,1.0144,3264.8,3261.7,3.2078]
[1762526844435,3.2078,3262.3,3261.7,3.2078]
[1762526844941,0.00377299,3262.3,3261.8,0.49696]
[1762526845130,0.00377299,3262.3,3261.7,3.21490723]
[1762526845330,0.00377299,3262.3,3262.2,0.49691]
[1762526845532,3.2078,3263.2,3262.1,3.2078]
[1762526845729,0.49662,3264.2,3263.5,0.4967]
[1762526846035,3.2078,3263.7,3262.4,3.2078]
[1762526846232,3.2078,3262.6,3262.0,3.2078]
[1762526846535,0.00360843,3262.6,3262.2,0.49691]
[1762526846837,0.00360843,3262.6,3262.0,3.2078]
[1762526847032,0.00817993,3262.6,3262.4,0.49687]
[1762526847333,3.2078,3264.0,3262.4,3.2078]
[1762526847536,3.2078,3264.3,3264.0,0.49664]
[1762526847837,0.49667,3263.9,3262.8,3.2078]
[1762526848028,3.70459,3263.1,3262.1,7.22539791]
[1762526848228,0.49678,3263.1,3262.1,3.2078]
[1762526848430,0.00396237,3263.1,3262.5,3.2078]
[1762526848632,0.00396237,3263.1,3262.9,3.2078]
[1762526848833,0.00396237,3263.1,3262.3,0.00459643]
[1762526849033,3.70462,3262.9,3262.3,0.00459643]
[1762526849233,3.2078,3262.9,3262.3,0.00459643]
[1762526849836,0.49688,3262.5,3262.3,0.00459643]
[1762526850040,3.2078,3262.9,3262.3,0.00459643]
[1762526850241,0.49686,3262.6,3262.1,0.00230255]
[1762526850429,0.49691,3262.3,3262.1,0.00230255]
[1762526850625,3.70469,3262.4,3262.1,0.00230255]
[1762526850837,3.2078,3262.5,3261.6,3.2078]
[1762526851029,3.2078,3261.7,3260.9,3.2078]
[1762526851230,0.49707,3261.2,3261.0,0.00459643]
[1762526851425,3.2078,3261.3,3261.0,0.00459643]
[1762526851627,0.49707,3261.2,3261.0,0.00459643]
[1762526851835,3.2078,3261.3,3261.0,0.00459643]
[1762526852132,0.00459643,3261.6,3261.0,0.0075228]
[1762526852333,0.00459643,3261.6,3261.1,0.49707]
[1762526852630,0.00459643,3261.6,3261.4,0.49702]
[1762526852835,0.00459643,3261.6,3261.4,0.49703]
[1762526853233,0.00459643,3261.6,3261.4,0.49702]
[1762526853633,0.49704,3261.4,3261.0,0.0075228]
[1762526853836,0.00459643,3261.6,3261.5,0.49702]
[1762526854034,3.2078,3261.7,3261.5,0.49702]
[1762526854232,3.2078,3262.3,3261.6,6.132]
[1762526854440,3.2078,3262.3,3261.4,3.2078]
[1762526854641,3.2078,3261.8,3261.0,3.2153228]
[1762526854838,3.2078,3262.2,3261.0,3.2153228]
[1762526855042,3.2078,3262.3,3261.4,3.2078]
[1762526855338,3.2078,3262.3,3262.1,0.49692]
[1762526855539,0.00396237,3263.1,3262.2,3.2078]
[1762526855840,3.2078,3264.5,3264.3,0.49658]
[1762526856139,0.49642,3265.5,3264.4,3.2078]
[1762526856337,3.2078,3265.0,3264.6,0.49654]
[1762526856637,3.2078,3265.9,3264.9,3.2078]
[1762526856843,0.00286222,3265.9,3265.8,0.49636]
[1762526857341,0.00286222,3265.9,3264.9,0.00245575]
[1762526857648,3.2078,3265.5,3264.9,0.00245575]
[1762526857941,0.00286222,3265.9,3264.4,3.70437]
[1762526857942,3.2078,3265.0,3264.4,3.70437]
[1762526858133,0.49646,3265.2,3264.6,0.49654]
[1762526858338,3.2078,3265.4,3264.4,3.2078]
[1762526858536,0.49642,3265.5,3264.8,3.70431]
[1762526858736,0.49641,3265.5,3265.0,0.49648]
[1762526858938,0.00286222,3265.9,3264.8,0.00305901]
[1762526858939,3.2078,3265.4,3264.8,0.00305901]
[1762526859237,3.2078,3265.0,3264.4,3.2078]
[1762526859541,0.49653,3264.8,3264.4,3.70438]
[1762526859742,3.70429,3265.0,3264.4,3.2078]
[1762526859942,3.2078,3265.0,3264.4,3.2078]
[1762526860338,0.4966,3264.3,3263.6,3.2078]
[1762526860544,0.49661,3264.2,3262.6,3.2078]
[1762526860845,3.2078,3263.8,3262.6,3.2078]
[1762526861047,3.2078,3263.5,3262.6,3.2078]
[1762526861342,0.8942,3265.6,3261.7,3.2078]
[1762526861343,3.2078,3262.7,3261.7,3.2078]
[1762526861532,0.8942,3264.3,3262.4,0.49688]
[1762526861533,0.00459643,3262.5,3262.4,0.49688]
[1762526861738,0.00828634,3262.5,3262.4,0.00387328]
[1762526862134,0.00828634,3262.5,3262.2,3.2078]
[1762526862338,0.00828634,3262.5,3261.9,0.00459643]
[1762526862643,0.49698,3261.8,3261.0,3.2078]
[1762526862949,0.49694,3262.1,3261.7,0.49698]
[1762526863146,0.00828634,3262.5,3262.4,0.49688]
[1762526863342,1.98013727,3265.6,3263.4,3.2078]
[1762526863545,0.8942,3265.6,3264.7,3.2078]
[1762526863847,0.49639,3265.7,3265.3,0.49643]
[1762526864047,0.49643,3265.4,3265.0,0.49648]
[1762526864239,0.0025603,3265.4,3265.0,0.00266408]
[1762526864747,0.49645,3265.3,3265.0,0.49914408]
[1762526864944,0.4989903,3265.4,3265.1,0.49646]
[1762526865145,0.0025603,3265.4,3265.0,0.00266408]
[1762526865343,0.0025603,3265.4,3265.1,0.49647]
[1762526865645,0.0025603,3265.4,3265.2,0.49645]
[1762526865948,3.2078,3266.8,3265.3,3.2078]
[1762526866244,0.49632,3266.2,3265.8,3.70416]
[1762526866441,2.15589786,3269.0,3265.0,0.00266408]
[1762526866442,0.49633,3266.1,3265.6,0.49639]
[1762526866639,3.2078,3266.5,3265.4,3.2078]
[1762526866839,0.49636,3265.9,3265.5,0.4964]
[1762526867044,0.49635,3266.0,3265.5,0.49641]
[1762526867343,0.49635,3266.0,3265.7,0.49637]
[1762526867541,0.00335791,3266.5,3265.9,3.2078]
[1762526867746,0.49631,3266.2,3265.5,3.2078]
[1762526867941,0.49636,3265.9,3265.5,3.2078]
[1762526868250,0.49637,3265.8,3265.3,0.49644]
[1762526868445,0.00335791,3266.5,3265.1,3.2078]
[1762526868640,0.00335791,3266.5,3265.0,0.00266408]
[1762526868641,0.00335791,3266.5,3265.8,0.49636]
[1762526868840,0.00335791,3266.5,3265.0,0.00266408]
[1762526868841,0.49635,3266.0,3265.1,3.2078]
[1762526869046,0.00335791,3266.5,3265.3,0.49643]
[1762526869344,0.49646,3265.2,3265.0,0.00266408]
[1762526869554,3.2078,3265.9,3265.0,0.00266408]
[1762526869848,0.49646,3265.2,3265.0,0.00266408]
[1762526870343,3.2078,3266.2,3265.0,0.00266408]
[1762526870545,3.2078,3266.1,3265.0,0.00266408]
[1762526870748,0.49646,3265.2,3265.0,0.00266408]
[1762526871545,3.2078,3266.3,3265.0,0.00266408]
[1762526871752,3.2078,3266.3,3265.6,0.49638]
[1762526871948,0.4964,3265.6,3265.4,3.2078]
[1762526872142,0.4964,3265.6,3265.4,3.70422]
[1762526872540,0.4964,3265.6,3265.4,3.2078]
[1762526872851,3.2078,3266.3,3265.4,3.2078]
[1762526872852,0.49635,3265.9,3265.6,0.49638]
[1762526873046,0.00335791,3266.5,3266.0,0.49633]
[1762526873245,0.00335791,3266.5,3266.3,0.49628]
[1762526873643,0.00335791,3266.5,3266.4,3.2078]
[1762526873842,0.00335791,3266.5,3266.1,0.49631]
[1762526874049,0.49961791,3266.5,3266.0,3.2078]
[1762526874348,0.00335791,3266.5,3266.0,3.2078]
[1762526874545,0.4963,3266.2,3266.0,3.2078]
[1762526874746,0.00335791,3266.5,3266.0,3.2078]
[1762526874949,0.00335791,3266.5,3266.4,3.2078]
[1762526875146,0.00335791,3266.5,3265.9,3.2078]
[1762526875342,3.21115791,3266.5,3265.7,0.49636]
[1762526875655,0.00335791,3266.5,3265.9,3.70414]
[1762526875854,0.4963,3266.2,3265.9,3.70414]
[1762526876160,0.49631,3266.2,3265.9,0.49634]
[1762526876341,0.00335791,3266.5,3266.4,0.49627]
[1762526876545,0.00335791,3266.5,3266.2,0.49629]
[1762526876745,0.49627,3266.4,3266.1,3.2078]
[1762526876948,0.4963,3266.3,3266.1,3.19771237]
[1762526877746,0.00335791,3266.5,3266.4,0.49627]
[1762526877952,0.49627,3266.4,3266.3,0.49629]
[1762526878155,0.00335791,3266.5,3266.1,3.19771237]
[1762526878451,0.00335791,3266.5,3266.4,0.49627]
[1762526878655,0.00335791,3266.5,3266.1,3.69402237]
[1762526878949,0.00335791,3266.5,3266.1,3.19771237]
[1762526879154,0.4963,3266.2,3266.1,3.19771237]
[1762526879557,0.49636,3265.8,3265.7,3.2078]
[1762526880543,0.8888,3266.4,3265.7,3.2078]
[1762526880949,0.49636,3265.8,3265.7,3.2078]
[1762526881149,0.49642,3265.4,3265.3,3.2078]
[1762526881555,0.49648,3265.0,3264.9,0.00459643]
[1762526881747,0.8888,3266.4,3264.1,3.2078]
[1762526881748,3.2078,3265.3,3264.1,3.2078]
[1762526882057,0.49677,3263.2,3262.7,3.2078]
[1762526882249,3.2078,3263.9,3262.7,3.2078]
[1762526882553,0.49681,3262.9,3262.7,3.21091516]
[1762526882754,3.70461,3262.9,3262.7,0.00311516]
[1762526882951,8.0,3262.8,3262.7,0.00311516]
[1762526883153,0.49701,3261.6,3261.3,3.2078]
[1762526883355,0.49709,3261.0,3260.9,3.11402508]
[1762526883549,0.49709,3261.0,3259.9,1.62120627]
[1762526883550,3.2078,3261.6,3260.2,3.2078]
[1762526883750,1.08593727,3262.5,3260.2,3.2078]
[1762526883961,0.49728,3259.8,3259.5,3.2078]
[1762526884158,8.0,3262.7,3259.5,3.2078]
[1762526884159,3.2078,3260.8,3259.5,3.2078]
[1762526884353,0.00215662,3259.8,3259.5,0.00341718]
[1762526884955,0.00215662,3259.8,3259.5,3.21121718]
[1762526885154,0.00459643,3260.5,3259.5,3.21121718]
[1762526885353,1.61594944,3262.3,3259.5,3.21121718]
[1762526885354,3.2078,3262.0,3260.4,0.8808]
[1762526885558,3.2078,3262.4,3261.2,3.2078]
[1762526886161,3.2078,3263.0,3262.2,3.2078]
[1762526886456,3.2078,3264.0,3262.9,3.2078]
[1762526886658,3.2078,3264.0,3263.3,3.2078]
[1762526886864,3.2078,3264.0,3262.3,0.00459643]
[1762526886865,3.2078,3264.1,3263.2,3.2078]
[1762526887161,3.2078,3264.1,3262.7,3.2078]
[1762526887351,3.2078,3264.5,3263.6,3.2078]
[1762526887547,3.2078,3264.5,3263.2,3.2078]
[1762526887548,3.2078,3264.1,3263.2,3.2078]
[1762526887761,0.00332396,3264.5,3262.2,0.00362279]
[1762526887762,0.4968,3262.9,3262.8,3.20104695]
[1762526887968,3.2078,3263.4,3262.2,0.00362279]
[1762526888259,0.00332396,3264.5,3262.2,0.00362279]
[1762526888260,0.49686,3262.6,3262.2,0.00362279]
[1762526888458,3.2078,3263.0,3262.2,0.00362279]
[1762526888654,0.49688,3262.4,3262.2,0.00362279]
[1762526888857,3.2078,3262.6,3260.8,3.2078]
[1762526888858,0.49705,3261.4,3260.8,3.2078]
[1762526889163,0.49707,3261.2,3260.8,3.2078]
[1762526889460,3.2078,3262.0,3260.8,3.70492]
[1762526889755,0.00246736,3262.0,3261.2,3.2078]
[1762526890157,0.00246736,3262.0,3261.3,0.00459643]
[1762526890355,0.00246736,3262.0,3261.8,0.49696]
[1762526890556,0.00459643,3262.6,3261.7,0.8808]
[1762526890863,3.2078,3264.3,3262.5,3.2078]
[1762526890864,0.49668,3263.8,3262.5,3.2078]
[1762526891056,0.4967,3263.6,3263.0,3.70458]
[1762526891260,3.2078,3264.4,3263.0,3.2078]
[1762526891460,3.2078,3265.3,3264.2,3.2078]
[1762526891659,3.2078,3266.2,3265.1,3.2078]
[1762526891858,3.2078,3266.2,3265.5,3.2078]
[1762526892159,3.2162994,3266.2,3265.5,3.2078]
[1762526892369,3.2162994,3266.2,3265.9,0.49634]
[1762526892557,0.0084994,3266.2,3266.1,3.2078]
[1762526892758,3.2078,3267.2,3266.1,3.2078]
[1762526893062,3.70384,3268.0,3267.4,0.49612]
[1762526893259,3.2078,3268.0,3267.5,0.49609]
[1762526893464,0.49605,3267.9,3267.4,3.2078]
[1762526893662,3.2078,3268.7,3268.3,0.49598]
[1762526893862,3.2078,3269.2,3268.2,3.2078]
[1762526894068,11.036,3270.3,3267.6,0.8808]
[1762526894069,3.2078,3268.8,3267.8,3.2078]
[1762526894267,0.4961,3267.6,3267.4,0.00273548]
[1762526894572,3.2078,3267.5,3266.4,3.2078]
[1762526894868,0.49618,3267.0,3266.4,3.2078]
[1762526895167,0.49622,3266.8,3265.8,0.49636]
[1762526895366,0.00282344,3266.8,3266.1,3.2078]
[1762526895664,3.2078,3267.9,3266.9,0.49618]
[1762526895871,0.49606,3267.8,3267.1,3.2078]
[1762526896072,3.2078,3267.9,3267.1,3.2078]
[1762526896557,3.2078,3267.9,3266.7,3.2078]
[1762526896761,0.00319462,3267.9,3267.8,0.49606]
[1762526896964,0.4958,3269.5,3267.6,4.0886]
[1762526897265,3.2078,3269.7,3268.9,3.2078]
[1762526897570,0.49589,3269.0,3268.2,0.00458933]
[1762526897762,0.49585,3269.2,3268.6,3.2078]
[1762526897959,0.00236281,3269.2,3268.6,3.2104083]
[1762526898363,0.00236281,3269.2,3268.6,0.0026083]
[1762526898873,3.70368,3269.0,3268.6,0.0026083]
[1762526899066,0.49592,3268.8,3268.6,0.0026083]
[1762526899365,0.49598,3268.3,3268.2,0.00458933]
[1762526899565,0.49598,3268.3,3265.8,0.79992987]
[1762526899566,0.49608,3267.7,3267.0,3.70397]
[1762526899766,3.2078,3267.9,3267.0,3.70397]
[1762526899960,3.2078,3267.9,3267.0,3.2078]
[1762526900162,0.00236281,3269.2,3265.9,3.97767968]
[1762526900163,3.2078,3267.5,3266.6,3.2078]
[1762526900363,3.2078,3268.1,3267.0,3.2078]
[1762526900566,0.49612,3267.5,3267.0,3.2078]
[1762526900772,0.00458933,3267.9,3266.6,0.00235666]
[1762526900773,3.70393,3267.4,3267.2,0.00458933]
[1762526900965,0.49622,3266.8,3266.6,0.00235666]
[1762526901165,3.21238933,3267.9,3266.7,3.2078]
[1762526901364,0.00752177,3267.9,3267.5,3.2078]
[1762526901961,0.00752177,3267.9,3267.7,0.49606]
[1762526902168,0.49581,3269.5,3267.6,8.0]
[1762526902467,0.49574,3269.9,3269.2,0.49584]
[1762526902669,3.2078,3270.4,3269.7,3.2078]
[1762526903076,3.21132462,3270.4,3269.8,0.49576]
[1762526903272,0.00811395,3270.4,3270.2,3.2078]
[1762526903672,0.50378395,3270.4,3269.8,3.2078]
[1762526903872,0.49573,3270.0,3269.8,3.2078]
[1762526904074,0.49574,3269.9,3269.8,3.2078]
[1762526904276,3.21591395,3270.4,3269.7,0.00807966]
[1762526904472,0.49575,3269.9,3269.7,0.00807966]
[1762526904672,0.49571,3270.2,3269.7,0.00807966]
[1762526904871,0.49573,3270.0,3269.8,3.2078]
[1762526905076,0.4958,3269.5,3269.4,3.2078]
[1762526905271,0.49589,3269.0,3268.8,3.2078]
[1762526905474,0.00811395,3270.4,3268.8,3.2078]
[1762526905771,0.49581,3269.5,3269.3,3.2078]
[1762526906172,0.49581,3269.5,3269.3,3.2105186]
[1762526906478,3.2078,3270.2,3269.9,0.49573]
[1762526906677,3.2078,3270.2,3269.3,3.2105186]
[1762526906979,0.49582,3269.4,3269.3,0.0027186]
[1762526907368,0.49582,3269.4,3267.7,3.2078]
[1762526907369,3.2078,3269.4,3267.7,3.2078]
[1762526907678,3.2078,3268.3,3267.3,3.2078]
[1762526907881,0.00352462,3270.4,3266.3,11.022]
[1762526907882,0.49606,3267.8,3267.7,3.2078]
[1762526908173,3.2078,3269.9,3267.7,3.2078]
[1762526908476,0.00391525,3269.9,3269.8,3.70354]
[1762526908674,0.00391525,3269.9,3269.8,3.2078]
[1762526908876,3.70338,3271.0,3269.9,14.116]
[1762526909076,0.49561,3270.8,3270.2,3.2078]
[1762526909380,3.2078,3271.5,3270.7,3.2078]
[1762526909682,3.2078,3271.5,3270.3,3.2078]
[1762526909872,3.21079875,3271.5,3270.7,3.2078]
[1762526910067,0.00458933,3271.2,3271.1,3.70336]
[1762526910280,3.2078,3272.6,3271.6,0.49548]
[1762526910577,3.2078,3273.6,3272.1,4.0208]
[1762526910768,3.2078,3273.6,3272.5,3.2078]
[1762526910972,3.2078,3274.4,3272.9,3.2078]
[1762526911167,0.5931,3276.0,3273.8,3.2078]
[1762526911168,3.2078,3275.0,3273.8,3.2078]
[1762526911370,3.21037661,3275.0,3274.2,3.2078]
[1762526911569,0.49501,3274.8,3274.2,3.2078]
[1762526911777,0.5454,3277.3,3274.8,0.495]
[1762526911778,3.2078,3275.9,3274.8,0.495]
[1762526911974,3.2078,3276.2,3274.6,0.813]
[1762526912172,3.2078,3276.6,3275.8,3.2078]
[1762526912375,0.49479,3276.2,3275.2,0.49494]
[1762526912572,3.2078,3276.5,3275.3,3.2078]
[1762526912777,3.2078,3276.0,3274.6,4.0208]
[1762526912975,3.2078,3275.9,3275.6,0.00458147]
[1762526913281,0.49486,3275.7,3275.6,0.00458147]
[1762526913478,3.70266,3275.7,3275.6,0.00458147]
[1762526913686,11.2078,3275.7,3274.1,3.2078]
[1762526913976,3.2078,3275.1,3273.8,3.21001031]
[1762526914182,0.00327921,3276.5,3274.8,3.2078]
[1762526914384,0.00327921,3276.5,3273.8,0.00221031]
[1762526914385,3.2078,3278.0,3276.3,3.2078]
[1762526914679,0.82848147,3277.5,3276.9,3.2078]
[1762526914879,0.00458147,3277.5,3276.8,0.00458147]
[1762526915078,3.2078,3276.9,3275.7,3.2078]
[1762526915380,0.49483,3276.0,3275.3,3.2078]
[1762526915583,0.49483,3276.0,3275.5,3.2078]
[1762526915782,3.2078,3277.2,3275.0,3.2078]
[1762526916080,0.00458147,3276.4,3276.0,0.813]
[1762526916383,0.00321888,3277.2,3276.7,0.49471]
[1762526916579,0.00321888,3277.2,3276.7,3.2078]
[1762526916973,0.00321888,3277.2,3276.0,0.813]
[1762526916974,0.00321888,3277.2,3277.1,3.2078]
[1762526917284,3.2078,3278.6,3277.4,0.813]
[1762526917486,3.2078,3277.8,3276.7,3.2078]
[1762526917688,3.2078,3276.8,3276.3,3.2078]
[1762526917875,0.49472,3276.7,3276.0,0.813]
[1762526918081,0.00351901,3276.7,3276.0,0.81687786]
[1762526918278,0.49452,3278.1,3276.6,3.2078]
[1762526918483,0.00458147,3278.3,3277.6,3.2078]
[1762526918883,0.49459,3277.6,3277.4,0.813]
[1762526919077,0.00458147,3278.3,3277.5,3.2078]
[1762526919489,0.49463,3277.3,3277.0,0.00458147]
[1762526919685,3.2078,3278.2,3277.0,0.00458147]
[1762526919885,3.21619204,3278.3,3277.0,0.00458147]
[1762526920194,3.21619204,3278.3,3277.1,3.2078]
[1762526920387,3.2078,3277.9,3277.1,3.2078]
[1762526920588,3.2078,3277.4,3277.0,0.00458147]
[1762526920888,3.2078,3277.9,3277.1,0.49465]
[1762526921082,3.2078,3277.9,3277.0,0.00458147]
[1762526921282,0.00839204,3278.3,3277.8,3.2078]
[1762526921483,0.00839204,3278.3,3278.1,0.4945]
[1762526921679,3.2078,3279.6,3278.5,0.49444]
[1762526921891,3.2078,3279.6,3279.0,3.2078]
[1762526922189,3.2078,3279.6,3277.4,0.9726]
[1762526922190,3.2078,3282.6,3281.3,0.49401]
[1762526922384,3.2078,3283.7,3282.4,3.2078]
[1762526922584,0.49381,3282.7,3282.4,0.00323357]
[1762526922894,3.2078,3282.9,3282.7,0.00457422]
[1762526923584,3.70159,3282.9,3282.7,0.00457422]
[1762526923986,3.2078,3282.9,3282.7,0.00457422]
[1762526924386,3.70159,3282.9,3282.7,0.00457422]
[1762526924598,8.0,3282.8,3282.7,4.22e-06]
[1762526924891,8.0,3282.8,3282.4,0.00323357]
[1762526924892,0.49384,3282.5,3282.4,7.79e-06]
[1762526925086,3.70164,3282.5,3282.4,7.79e-06]
[1762526925291,3.2078,3282.5,3280.5,3.2078]
[1762526925593,3.2078,3281.2,3280.5,3.2078]
[1762526925786,0.5091,3284.8,3281.0,3.2078]
[1762526925787,3.2078,3282.2,3281.0,3.2078]
[1762526925989,3.2078,3281.1,3279.7,3.2078]
[1762526926197,0.49423,3279.9,3279.7,3.21161393]
[1762526926386,0.49423,3279.9,3279.7,0.00381393]
[1762526926587,3.2078,3279.8,3279.7,0.00381393]
[1762526926894,3.2078,3282.4,3280.0,0.9726]
[1762526927085,3.2078,3282.5,3281.6,0.49397]
[1762526927291,0.00457422,3282.4,3281.9,3.2078]
[1762526927592,0.00457422,3282.4,3282.0,3.2078]
[1762526927796,3.2078,3283.6,3282.0,3.2078]
[1762526927990,3.2078,3283.2,3282.2,3.2078]
[1762526928196,3.21022053,3283.6,3282.6,3.2078]
[1762526928389,3.2078,3283.3,3282.0,3.21023566]
[1762526928586,0.49379,3282.9,3282.0,0.49634566]
[1762526928891,0.00457422,3282.8,3282.2,3.2078]
[1762526929091,0.00457422,3282.8,3282.0,0.00243566]
[1762526929092,0.4939,3282.1,3282.0,0.00243566]
[1762526929495,8.4939,3282.1,3282.0,0.00243566]
[1762526929696,0.4939,3282.1,3282.0,0.00243566]
[1762526929897,0.49389,3282.2,3282.0,0.00243566]
[1762526930299,8.0,3282.1,3282.0,0.00243566]
[1762526930498,8.0,3282.1,3280.5,3.2078]
[1762526930695,3.2078,3282.0,3280.9,3.70186]
[1762526930891,0.00457422,3282.8,3281.4,3.2078]
[1762526931096,0.00457422,3282.8,3282.2,3.2078]
[1762526931293,0.00457422,3282.8,3282.3,0.49386]
[1762526931606,0.00457422,3282.8,3282.6,3.2078]
[1762526932100,0.00457422,3282.8,3282.3,0.00304417]
[1762526932295,0.00457422,3282.8,3282.6,3.70161]
[1762526932491,0.00242053,3283.6,3283.0,0.49376]
[1762526932800,0.49373,3283.3,3282.7,3.2078]
[1762526932994,0.49376,3283.1,3282.7,3.2078]
[1762526933195,3.2078,3283.2,3282.3,3.21084417]
[1762526933393,0.49377,3283.0,3282.4,0.49385]
[1762526933594,0.49385,3282.5,3282.3,0.00304417]
[1762526933902,3.2078,3282.4,3280.5,3.2078]
[1762526934090,0.00457422,3283.0,3280.5,3.2078]
[1762526934091,0.49402,3281.4,3280.5,3.2078]
[1762526934401,3.2078,3282.0,3280.7,3.2078]
[1762526934695,3.2078,3281.3,3280.3,3.2078]
[1762526934895,3.2078,3280.9,3280.3,0.00307827]
[1762526935197,3.70195,3280.5,3280.3,0.00765249]
[1762526935790,3.2078,3280.6,3280.3,0.00765249]
[1762526936099,0.00457422,3281.1,3280.5,3.2078]
[1762526936298,0.00457422,3281.1,3281.0,3.2078]
[1762526936498,3.2078,3282.2,3281.0,3.2078]
[1762526936701,3.2078,3282.7,3281.7,3.2078]
[1762526937199,3.2078,3282.7,3281.5,3.2078]
[1762526937400,0.00457422,3282.4,3281.8,0.00457422]
[1762526937594,0.00457422,3282.4,3282.3,3.2078]
[1762526937904,3.2078,3283.3,3281.9,7.21334124]
[1762526938101,0.49369,3283.5,3283.0,0.49376]
[1762526938301,3.2078,3283.7,3282.9,3.2078]
[1762526938302,0.49367,3283.7,3282.9,3.2078]
[1762526938703,3.70147,3283.7,3283.1,0.49374]
[1762526938903,3.70147,3283.7,3283.1,0.0072289]
[1762526938904,3.70982142,3283.7,3283.1,0.0072289]
[1762526939207,3.21615142,3283.7,3283.1,0.0072289]
[1762526939402,0.49374,3283.2,3283.1,0.0072289]
[1762526939606,3.2078,3283.3,3282.1,3.7017]
[1762526939803,0.49385,3282.5,3282.1,3.2078]
[1762526940002,0.49379,3282.9,3282.1,3.2078]
[1762526940210,3.2078,3283.0,3281.7,3.2078]
[1762526940498,3.2078,3282.2,3282.0,0.00457422]
[1762526940698,3.2078,3283.5,3282.1,3.2078]
[1762526940899,3.2078,3283.4,3282.8,3.2078]
[1762526941096,0.00835142,3283.7,3282.4,3.2078]
[1762526941403,0.00835142,3283.7,3282.0,0.00457422]
[1762526941404,0.00835142,3283.7,3283.5,0.49369]
[1762526941606,0.00835142,3283.7,3283.6,3.2078]
[1762526941804,0.49372,3283.4,3283.2,3.2078]
[1762526942107,4.2078,3285.0,3284.0,0.49361]
[1762526942302,3.2078,3284.6,3283.2,0.9732]
[1762526942601,1.0,3285.0,3284.6,0.49352]
[1762526942802,0.6014,3287.2,3283.2,0.9732]
[1762526942803,3.2078,3286.5,3284.9,3.2078]
[1762526943005,3.2078,3286.1,3284.8,0.9732]
[1762526943210,0.49354,3284.6,3284.4,3.2078]
[1762526943413,0.49365,3283.8,3283.2,0.49373]
[1762526943611,3.2078,3283.8,3282.4,3.2078]
[1762526943918,3.21234986,3283.8,3283.2,0.00456691]
[1762526944214,0.00776524,3283.8,3283.7,3.2078]
[1762526944606,3.2078,3286.0,3283.7,11.2078]
[1762526944807,3.2078,3286.5,3284.9,3.2078]
[1762526945116,3.2078,3285.7,3284.8,0.9732]
[1762526945309,3.2078,3285.2,3284.7,3.2078]
[1762526945513,0.00382162,3285.2,3285.1,3.70125]
[1762526945711,3.2078,3285.2,3284.8,0.9732]
[1762526945911,0.4935,3284.8,3284.7,3.20003476]
[1762526946115,3.7013,3284.8,3284.6,0.00456691]
[1762526946315,3.2078,3284.8,3283.2,0.97594599]
[1762526946528,0.49372,3283.4,3283.2,0.97594599]
[1762526946812,3.70370473,3283.4,3283.2,0.00274599]
[1762526947612,11.70370473,3283.4,3283.2,0.00274599]
[1762526947808,0.00218473,3283.4,3283.2,0.00274599]
[1762526948016,0.00218473,3283.4,3283.2,3.70428599]
[1762526948207,0.00218473,3283.4,3283.2,0.00274599]
[1762526948412,0.00218473,3283.4,3281.6,0.9726]
[1762526948413,8.00218473,3283.4,3281.8,3.2078]
[1762526948715,0.00218473,3283.4,3283.3,3.2078]
[1762526948915,0.00456691,3283.6,3283.4,0.49371]
[1762526949313,0.00456691,3283.6,3283.2,0.9732]
[1762526949519,0.00456691,3283.6,3283.4,3.70151]
[1762526949916,0.00756075,3283.6,3283.4,0.49605208]
[1762526950108,0.00756075,3283.6,3283.4,3.70385208]
[1762526950313,0.00756075,3283.6,3283.4,0.00234208]
[1762526950522,0.50125075,3283.6,3283.4,0.00234208]
[1762526950817,0.50125075,3283.6,3283.1,0.00456691]
[1762526950818,0.00756075,3283.6,3283.1,0.00456691]
[1762526951019,0.00756075,3283.6,3283.4,0.49371]
[1762526951214,3.2078,3284.6,3283.3,3.2078]
[1762526951413,3.2078,3284.7,3283.8,3.2078]
[1762526951721,3.2078,3284.7,3283.9,3.2078]
[1762526951921,3.2078,3284.7,3282.6,0.79992987]
[1762526951922,3.2078,3284.3,3283.5,3.2078]
[1762526952112,3.2078,3284.3,3283.0,3.2078]
[1762526952421,0.4937,3283.5,3283.3,0.00456691]
[1762526952621,0.49367,3283.7,3283.3,0.00456691]
[1762526952812,0.49371,3283.5,3283.3,0.00456691]
[1762526953012,0.00456691,3284.0,3282.4,3.2078]
[1762526953013,0.49383,3282.6,3282.4,3.2078]
[1762526953221,0.49383,3282.6,3281.5,0.79992987]
[1762526953222,0.49397,3281.7,3281.5,3.2078]
[1762526953414,3.2078,3282.1,3281.5,3.2078]
[1762526953918,3.2078,3281.9,3281.5,0.00364594]
[1762526954222,0.00823988,3282.1,3281.8,3.70175]
[1762526954418,0.00374662,3282.1,3281.9,0.49394]
[1762526955027,0.00374662,3282.1,3281.8,3.2078]
[1762526955028,0.49371,3283.4,3283.1,0.49375]
[1762526955321,0.49384,3282.6,3282.4,3.2078]